Workbook

Sheet INSTALLATION
U6: =CONCATENATE(" Power : 1kW = ",KW_COST," ",CUR_CURRENCY) -> Power : 1kW = 3.504 EURO
D8: Hours | L8: 18 | N8: WORKING PRESSURE
D9: Days | L9: 7 | O9: 61
D10: Weeks | L10: 42
D11: Annual running Hours | I11: =+L10*L9*L8 -> 5292 | O11: =O9/10 -> 6.1 | P11: Bar
D13: DISTRIBUTION | I13: =IF(INSTALL_MAIN_TYPE="RING","MAIN RING","MAIN PIPE") -> MAIN PIPE | N13: =IF(INSTALL_DIST1_TYPE="RING","DISTRIBUTION RING 1","DISTRIBUTION PIPE 1") -> DISTRIBUTION RING 1 | S13: =IF(INSTALL_DIST2_TYPE="RING","DISTRIBUTION RING 2","DISTRIBUTION PIPE 2") -> DISTRIBUTION RING 2 | X13: Key to Icons
D14: Type | J14: TRUE | L14: FALSE | O14: TRUE | Q14: FALSE | T14: TRUE | V14: FALSE | X14: Seat valve
J15: 3506 | O15: 3806 | T15: 2672 | Y15: 0.044 | Z15: Bar*
D16: Volume Flow Rate
J17: =J15 -> 3506 | K17: m3/h | N17: =O15 -> 3806 | P17: m3/h | S17: =T15 -> 2672 | U17: m3/h | X17: Diaphragm valve
J18: =J17*CONV_M3H_CFM -> 2063.281 | K18: Cfm | N18: =N17*CONV_M3H_CFM -> 2239.831 | P18: Cfm | S18: =S17*CONV_M3H_CFM -> 1572.472 | U18: Cfm | Y18: 0.012 | Z18: Bar
J19: =J17*CONV_M3H_LS -> 973.8888889 | K19: l/s | N19: =N17*CONV_M3H_LS -> 1057.222222 | P19: l/s | S19: =S17*CONV_M3H_LS -> 742.2222222 | U19: l/s
D20: Pipe Length | J20: 2898 | X20: Gate valve
D21: (furthest point) | P21: 2286 | U21: 2636 | Y21: 0.003 | Z21: Bar
I22: =J20 -> 2898 | K22: m | N22: =P21 -> 2286 | P22: m | S22: =U21 -> 2636 | U22: m
D23: Pipe Inner Diameter | X23: Elbow
K24: 2 " | P24: 1" | U24: 1 " 1/2 | Y24: 0.015 | Z24: Bar
J25: =VLOOKUP(K24,PIPE_DIAMETERS,2,FALSE) -> 50 - 60 | K25: mm | N25: =VLOOKUP(P24,PIPE_DIAMETERS,2,FALSE) -> 26 - 34 | P25: mm | S25: =VLOOKUP(U24,PIPE_DIAMETERS,2,FALSE) -> 40 - 49 | U25: mm
D26: Valves, bends, … | X26: Bends R = d
D27: (click on the icons to add components to the system) | I27: 1 | J27: 10 | K27: 0 | L27: 0 | N27: 0 | O27: 0 | P27: 0 | Q27: 0 | S27: 0 | T27: 0 | U27: 0 | V27: 0 | Y27: 0.003 | Z27: Bar
X28: Bends R = 2d
I29: 0 | J29: 0 | K29: 5 | L29: 0 | N29: 0 | O29: 0 | P29: 0 | Q29: 0 | S29: 0 | T29: 0 | U29: 0 | V29: 0 | Y29: 0.015 | Z29: Bar
W30: 0
X31: Tpieces, hoses
W32: 0 | Y32: 0.019 | Z32: Bar
D34: Pressure drop | I34: =IF(INSTALL_MAIN_TYPE="RING",(160000000*((J17/2/3600)^1.85*(I22+AA57))/(AB48^5*(O11+1))),(160000000*((J17/3600)^1.85*(I22+AA57))/(AB48^5*(INST_WORK_PRESS+1)))) -> 198.9996918 | L34: Bar | N34: =IF(INSTALL_DIST1_TYPE="RING",(160000000*((N17/2/3600)^1.85*(N22+AB57))/(AC48^5*(O11+1))),(160000000*((N17/3600)^1.85*(N22+AB57))/(AC48^5*(INST_WORK_PRESS+1)))) -> 1621.959286 | Q34: Bar | S34: =IF(INSTALL_DIST2_TYPE="ring",(160000000*((S17/2/3600)^1.85*(S22+AC57))/(AD48^5*(O11+1))),(160000000*((S17/3600)^1.85*(S22+AC57))/(AD48^5*(INST_WORK_PRESS+1)))) -> 92.70206413 | V34: Bar | W34: 0 | X34: Reducers
Y35: 0.005 | Z35: Bar
W36: 0
D37: Annual Cost | I37: =I34*(AA58*0.07)*INST_ANN_HOURS*KW_COST -> 121877754.2 | L37: =CUR_CURRENCY -> EURO | N37: =N34*(AB58*0.07)*INST_ANN_HOURS*KW_COST -> 1170619810 | Q37: =CUR_CURRENCY -> EURO | S37: =S34*(AC58*0.07)*INST_ANN_HOURS*KW_COST -> 35426396.95 | V37: =CUR_CURRENCY -> EURO
Z38: * exemple of pressure drop through a 25 mm pipe for a 200 m3/h (118 cfm) compressor
I47: R3 | J47: R2 | K47: R1 | AB47: R1 | AC47: R2 | AD47: R3
N48: 10 | O48: 15 | P48: 20 | Q48: 25 | R48: 32 | S48: 40 | T48: 50 | U48: 65 | V48: 80 | W48: 90 | X48: 100 | Y48: 125 | Z48: 150 | AB48: =CP_INST_1 -> 50 | AC48: =CP_INST_2 -> 25 | AD48: =CP_INST_3 -> 40
I49: 0 | J49: 0 | K49: 0 | M49: A | N49: 2 | O49: 3 | P49: 4 | Q49: 4.5 | R49: 6 | S49: 7.5 | T49: 12.5 | U49: 15 | V49: 17.5 | W49: 20 | X49: 22.5 | Y49: 35 | Z49: 42.5 | AB49: =HLOOKUP($AB$48,$N$48:$Z$56,2,FALSE) -> 12.5 | AC49: =HLOOKUP($AC$48,$N$48:$Z$56,2,FALSE) -> 4.5 | AD49: =HLOOKUP($AD$48,$N$48:$Z$56,2,FALSE) -> 7.5
I50: 0 | J50: 0 | K50: 0 | M50: B | N50: 0.55 | O50: 0.7 | P50: 0.95 | Q50: 1.2 | R50: 1.7 | S50: 2 | T50: 3 | U50: 3.7 | V50: 4.5 | W50: 5.25 | X50: 6 | Y50: 8 | Z50: 10 | AB50: =HLOOKUP($AB$48,$N$48:$Z$56,3,FALSE) -> 3 | AC50: =HLOOKUP($AC$48,$N$48:$Z$56,3,FALSE) -> 1.2 | AD50: =HLOOKUP($AD$48,$N$48:$Z$56,3,FALSE) -> 2
I51: 0 | J51: 0 | K51: 0 | M51: C | N51: 0.15 | O51: 0.18 | P51: 0.22 | Q51: 0.3 | R51: 0.4 | S51: 0.5 | T51: 0.7 | U51: 0.85 | V51: 1 | W51: 1.25 | X51: 1.5 | Y51: 2 | Z51: 2.5 | AB51: =HLOOKUP($AB$48,$N$48:$Z$56,4,FALSE) -> 0.7 | AC51: =HLOOKUP($AC$48,$N$48:$Z$56,4,FALSE) -> 0.3 | AD51: =HLOOKUP($AD$48,$N$48:$Z$56,4,FALSE) -> 0.5
I52: 0 | J52: 0 | K52: 0 | M52: D | N52: 0.06 | O52: 0.08 | P52: 1 | Q52: 1.5 | R52: 2 | S52: 2.5 | T52: 3.5 | U52: 4.25 | V52: 5 | W52: 6 | X52: 7 | Y52: 10 | Z52: 15 | AB52: =HLOOKUP($AB$48,$N$48:$Z$56,5,FALSE) -> 3.5 | AC52: =HLOOKUP($AC$48,$N$48:$Z$56,5,FALSE) -> 1.5 | AD52: =HLOOKUP($AD$48,$N$48:$Z$56,5,FALSE) -> 2.5
I53: 0 | J53: 0 | K53: 0 | M53: E | N53: 0.15 | O53: 0.18 | P53: 0.22 | Q53: 0.3 | R53: 0.4 | S53: 0.5 | T53: 0.6 | U53: 0.8 | V53: 1 | W53: 1.25 | X53: 1.5 | Y53: 2 | Z53: 2.5 | AB53: =HLOOKUP($AB$48,$N$48:$Z$56,6,FALSE) -> 0.6 | AC53: =HLOOKUP($AC$48,$N$48:$Z$56,6,FALSE) -> 0.3 | AD53: =HLOOKUP($AD$48,$N$48:$Z$56,6,FALSE) -> 0.5
I54: 0 | J54: 0 | K54: 0 | M54: F | N54: 0.08 | O54: 0.1 | P54: 0.12 | Q54: 0.15 | R54: 0.2 | S54: 0.25 | T54: 0.3 | U54: 0.4 | V54: 0.5 | W54: 0.65 | X54: 0.8 | Y54: 1 | Z54: 1.5 | AB54: =HLOOKUP($AB$48,$N$48:$Z$56,7,FALSE) -> 0.3 | AC54: =HLOOKUP($AC$48,$N$48:$Z$56,7,FALSE) -> 0.15 | AD54: =HLOOKUP($AD$48,$N$48:$Z$56,7,FALSE) -> 0.25
I55: 0 | J55: 0 | K55: 0 | M55: G | N55: 0.8 | O55: 1.15 | P55: 1.5 | Q55: 2 | R55: 2.5 | S55: 3 | T55: 4 | U55: 5.5 | V55: 7 | W55: 8.5 | X55: 10 | Y55: 15 | Z55: 20 | AB55: =HLOOKUP($AB$48,$N$48:$Z$56,8,FALSE) -> 4 | AC55: =HLOOKUP($AC$48,$N$48:$Z$56,8,FALSE) -> 2 | AD55: =HLOOKUP($AD$48,$N$48:$Z$56,8,FALSE) -> 3
I56: 0 | J56: 0 | K56: 0 | M56: H | N56: 0.2 | O56: 0.3 | P56: 0.4 | Q56: 0.5 | R56: 0.6 | S56: 0.7 | T56: 1 | U56: 1.5 | V56: 2 | W56: 2.25 | X56: 2.5 | Y56: 3.5 | Z56: 4 | AB56: =HLOOKUP($AB$48,$N$48:$Z$56,9,FALSE) -> 1 | AC56: =HLOOKUP($AC$48,$N$48:$Z$56,9,FALSE) -> 0.5 | AD56: =HLOOKUP($AD$48,$N$48:$Z$56,9,FALSE) -> 0.7
Z57: TOTAL | AA57: =SUMPRODUCT(K49:K56,AB49:AB56) -> 0 | AB57: =SUMPRODUCT(J49:J56,AC49:AC56) -> 0 | AC57: =SUMPRODUCT(I49:I56,AD49:AD56) -> 0
V58: POWER | AA58: =0.000000008*J15^3-0.00002*J15^2+0.1059*J15+1.6232 -> 471.8349057 | AB58: =0.000000008*O15^3-0.00002*O15^2+0.1059*O15+1.6232 -> 556.0245249 | AC58: =0.000000008*T15^3-0.00002*T15^2+0.1059*T15+1.6232 -> 294.4120676

Sheet CONVERSION
K3: =CONCATENATE(" Power : 1kW = ",KW_COST," ",CUR_CURRENCY) -> Power : 1kW = 3.504 EURO
B5: FLOW RATE conversion | H5: TEMPERATURE conversion
B7: 100 | C7: m3/h | D7: = | E7: =ROUND(CONV_FLOW_RATE_IN*'CONVERSION _DATA'!AH10,3) -> 27.778 | F7: Litre/sec | H7: 100 | I7: °C | J7: = | K7: =ROUND(CONV_TEMPERATURE_IN*'CONVERSION _DATA'!AZ5+'CONVERSION _DATA'!BA5,3) -> 132 | L7: °F
B11: PRESSURE conversion | H11: OIL CONTENT conversion
B13: 100 | C13: PSI | D13: = | E13: =ROUND(CONV_PRESSURE_IN*'CONVERSION _DATA'!R28,3) -> 6.895 | F13: Bar | H13: 100 | I13: mg/m3 | J13: = | K13: =ROUND(CONV_OIL_IN*'CONVERSION _DATA'!AD26,3) -> 83.333 | L13: ppm
B17: ENERGY conversion | H17: VOLUME conversion
B19: 100 | C19: kW/h | D19: = | E19: =IF('CONVERSION _DATA'!V45="-","No conversion",ROUND(CONV_ENERGY_IN*'CONVERSION _DATA'!V45,3)) -> 360077.489 | F19: Joule | H19: 100 | I19: m3 | J19: = | K19: =ROUND(CONV_VOLUME_IN*'CONVERSION _DATA'!AH21,3) -> 3531.47 | L19: Ft3
B23: POWER conversion | H23: F.A.D.@ 7 bar / ALTITUDE CORRECTION
B25: 100 | C25: Watt | D25: = | E25: =ROUND(CONV_POWER_IN*'CONVERSION _DATA'!Z54,3) -> 74570 | F25: HP
H26: 100 | J26: = | K26: =CONV_ALTITUDE_IN*'CONVERSION _DATA'!AK20 -> 89.005 | L26: =IF(M27="Pint",M27&"s",IF(M27="Gallon",M27&"s",IF(M27="Litre",M27&"s",M27))) -> cm3
M27: cm3
B29: LENGTH conversion
H30: Height | I30: = | L30: =K31&" m" -> 2313 m
B31: 100 | C31: Metre | D31: = | E31: =ROUND(CONV_LENGTH_IN*'CONVERSION _DATA'!Z37,3) -> 109.361 | F31: Yard | K31: 2313
F77: J/sec
F83: J/sec
F89: °F
L92: J/sec
F95: °F
L98: J/sec
L104: °F
L110: °F

Sheet KW COST
C7: Use the scrollbar to the right to | G7: Power Cost per kW
C8: adjust the cost of the power.
H9: 3504
C10: Use the drop down box below
C11: to select your country/currency.
C13: Country Selection | G13: Cost in local currency:
D15: Belgium | G15: ="1 kW = "&H9/1000&" "&CUR_CURRENCY -> 1 kW = 3.504 EURO

Sheet Langue (hidden)
A2: English | B2: English | C2: Français | D2: Votre langue / Your language
A4: Air demand | B4: Air demand | C4: Consommation
A5: Pressure | B5: Pressure | C5: Pression
A6: Air delivery | B6: Air delivery | C6: Débit délivré
A7: Energy Savings - ROLLAIR® V | B7: Energy Savings | C7: Economie d'énergie - ROLLAIR® V
A8: Project Ref. | B8: Project Ref. | C8: Réf. Projet
A9: Company | B9: Company | C9: Société
A10: Contact name | B10: Contact name | C10: Nom contact
A11: Annual Hours | B11: Annual Hours | C11: Heures par an
A12: Hours per day | B12: Hours per day | C12: Heures par jour
A13: Days per week | B13: Days per week | C13: Jours par semaine
A14: Weeks per year | B14: Weeks per year | C14: Semaines par an
A15: Hours | B15: Hours | C15: Heures
A16: Min | B16: Min | C16: Min
A17: Days | B17: Days | C17: Jours
A18: Weeks | B18: Weeks | C18: Semaines
A19: Cost of | B19: Cost of | C19: Coût d'
A20: Cost of | B20: Cost of | C20: Coût d'
A21: Country | B21: Country | C21: Pays
A22: Screw compressor | B22: Screw compressor | C22: Compresseur à vis ROLLAIR®
A23: Variable screw compressor | B23: Variable screw compressor | C23: Compresseur à vis à vitesse variable ROLLAIR® V
A24: Pressure (bar) | B24: Pressure (bar) | C24: Pression (bar)
A25: Energy cost | B25: Energy cost | C25: Coût de l'energie
A26: kWh | B26: kWh | C26: kWh
A27: m3 cost | B27: m3 cost | C27: Coût du m3
A28: Set Pressure | B28: Set Pressure | C28: Pression consigne
A29: Air demand | B29: Air demand | C29: Consommation d'air
A30: Extra Investment | B30: Extra Investment | C30: Investissement supplémentaire
A31: ENERGY SAVINGS FOR THE PERIOD | B31: ENERGY SAVINGS FOR THE PERIOD | C31: ECONOMIE D'ENERGIE SUR LA PERIODE
A32: Pay Back | B32: Pay Back | C32: Retour sur investissement
A33: Month(s) | B33: Month(s) | C33: Mois(s)
A34: Year(s) | B34: Year(s) | C34: An(s)
A35: Operating hours | B35: Operating hours | C35: Heures de fonctionnement
A36: Remaining time | B36: Remaining time | C36: Temps restant
A37: From | B37: From | C37: De
A38: to | B38: to | C38: à
A39: ANNUAL ENERGY SAVINGS | B39: ANNUAL ENERGY SAVINGS | C39: ECONOMIE D'ENERGIE ANNUELLE
A40: Compressors | B40: Compressors | C40: Compresseurs

Sheet GLOBAL DATA (hidden)
B1: ALL DATA MOVED AND DEFINED BY INTUITVE MEDIA IS IN THIS SHEET (APART FROM ROLLAIR V STUFF)
B3: CURRENCY AND KW DATA
B5: Currency Lookup List | E5: Country
B6: Austria | C6: ATS | E6: Belgium
B7: Belgium | C7: EURO
B8: Brasil | C8: USD | E8: Current Currency
B9: China | C9: UKD | E9: =VLOOKUP(CUR_COUNTRY,CURRENCIES,2) -> EURO
B10: Czech Republic | C10: CZK
B11: Denmark | C11: DKK | E11: Cost per KW
B12: Egypt | C12: EGP | E12: 3.504
B13: Finland | C13: FIM
B14: France | C14: EURO | E14: String for Graphs
B15: Germany | C15: EURO | E15: =CONCATENATE(CUR_CURRENCY,GRAPH_UNITS) -> EURO /l/s
B16: Greece | C16: EURO
B17: Hungary | C17: HUF | E17: Units for graphs
B18: India | C18: INR | E18: /l/s
B19: Indonesia | C19: IDR
B20: Ireland | C20: EURO
B21: Italy | C21: EURO
B22: Japan | C22: JPY
B23: Mexico | C23: USD
B24: Morroco | C24: MAD
B25: Netherlands | C25: EURO
B26: Norway | C26: NOK
B27: Poland | C27: PLZ
B28: Portugal | C28: PTE
B29: Russia | C29: RUR
B30: South Africa | C30: ZAR
B31: Spain | C31: EURO
B32: Sweden | C32: SEK
B33: Switzerland | C33: CHF
B34: Turkey | C34: TRL
B35: U.K. | C35: GBP
B36: USA | C36: USD
B37: Yugoslavia | C37: YUN
B41: AIR USAGE DATA
B43: Volume m3/h | C43: 1067
B44: Volume CFM | C44: =ROUND(AU_VOL_M3*CONV_M3H_CFM,3) -> 627.93
B45: Volume L/s | C45: =ROUND(AU_VOL_M3*CONV_M3H_LS,3) -> 296.389
B46: Motor Power | C46: 250
B49: AIR LEAKAGE DATA
B51: Air Leakage Power | C51: 195
B52: Air Leakage Receiver Cap | C52: 4673
B53: Total Net Cap Length | C53: 2920
B54: Total Net Cap Dia | C54: 2 "
B55: Total Net Capacity m3 | C55: =(((CP_AIR_LEAKAGE/2/1000)^2)*PI()*AL_NET_CAP_LEN)+(AL_REC_CAP/1000) -> #REF!
B57: PIPE_DIAMETERS (LOOKUP)
B58: 1/8 " | C58: 5 -10 | D58: NOT USED
B59: 1/4 " | C59: 8 -13 | D59: NOT USED
B60: 3/8 " | C60: 12 - 17
B61: 1/2 " | C61: 15 - 21
B62: 3/4 " | C62: 20 - 27
B63: 1" | C63: 26 - 34
B64: 1 " 1/4 | C64: 33 - 42
B65: 1 " 1/2 | C65: 40 - 49
B66: 2 " | C66: 50 - 60
B67: 2 " 1/2 | C67: 66 - 76
B68: 3 " | C68: 80 - 90
B69: 3 " 1/2 | C69: 90 -102
B70: 4" | C70: 102 - 114
B71: 5" | C71: 126 - 141
B72: 6" | C72: 152 - 170
B75: LOAD DUTY DATA
B77: Compressor Capacity | C77: 1324
B78: Air Demand | C78: 584 | F78: Graph Data
B79: Minimum Pressure | C79: 58 | F79: =NRG_SINGLE -> Rollair 4000 A - PCI06 IP23 | G79: =#REF! -> #REF! | H79: #REF!
B80: Compressor 1 Diff | C80: 7 | F80: =NRG_BASE&" - "&NRG_TOP -> Rollair 2000 A IP23 - Rollair 2000 A IP23 | G80: =#REF! -> #REF! | H80: #REF!
B81: Compressor 2 Diff | C81: 18
B82: Piping Diamater | C82: 2 "
B83: Receiver Capacity | C83: 20000
B84: Network Length | C84: 5000
B87: TOTAL Netwok Capacity Data (LOAD_DUTY_DATA LOOKUP)
B88: 5 -10 | C88: 6
B89: 8 -13 | C89: 8
B90: 12 - 17 | C90: 10
B91: 15 - 21 | C91: 15
B92: 20 - 27 | C92: 20
B93: 26 - 34 | C93: 25
B94: 33 - 42 | C94: 32
B95: 40 - 49 | C95: 40
B96: 50 - 60 | C96: 50
B97: 66 - 76 | C97: 65
B98: 80 - 90 | C98: 80
B99: 90 -102 | C99: 90
B100: 102 - 114 | C100: 100
B101: 126 - 141 | C101: 125
B102: 152 - 170 | C102: 150
B103: These values look up the values in the table above but only the first value is actually used in the interface! | C103: =VLOOKUP(#REF!,LOAD_DUTY_DATA,2,FALSE) -> #REF! | D103: LOAD_DUTY
C104: =VLOOKUP(#REF!,LOAD_DUTY_DATA,2,FALSE) -> #REF! | D104: AIR_LEAKAGE
C105: =VLOOKUP(INSTALLATION!J25,LOAD_DUTY_DATA,2,FALSE) -> 50 | D105: INSTALLATION
C106: =VLOOKUP(INSTALLATION!N25,LOAD_DUTY_DATA,2,FALSE) -> 25 | D106: INSTALLATION
C107: =VLOOKUP(INSTALLATION!S25,LOAD_DUTY_DATA,2,FALSE) -> 40 | D107: INSTALLATION
B115: ENERGY DATA (COMPRESSOR COMPARISON)
B117: Single Unit | C117: Rollair 4000 A - PCI06 IP23
B118: Base Load | C118: Rollair 2000 A IP23
B119: Top Up | C119: Rollair 2000 A IP23
F122: =(VLOOKUP("Rollair 4000 A - PCI06 IP23",COMPRESSOR_DATA,11)) -> #REF!
B125: Base + Top Cap | C125: =SUM(NRG_BASE_CAP,nrg_top_cap) -> #REF!
B126: Air Usage Max | C126: =MIN(NRG_SINGLE_CAP,NRG_BASE_TOP_CAP) -> #REF!
B127: Yearly running Hrs | C127: 5872
B128: Air Usage | C128: 52
B130: Base Fan Cost | C130: =IF(NRG_FAN_POWER="","",NRG_BASE_MOTOR_FAN*NRG_HRS_YR/(NRG_BASE_MOTOR_EFF/100)*KW_COST) -> #REF!
B131: Top Up Fan Cost | C131: =IF(NRG_FAN_POWER="","",NRG_TOP_MOTOR_FAN*NRG_HRS_YR/(NRG_TOP_MOTOR_EFF/100)*KW_COST) -> #REF!
B138: INSTALLATION DATA
B140: Main distribution Type | C140: PIPE
B141: Distribution 1 Type | C141: RING
B142: Distribution 2 Type | C142: RING
B145: DUCTWORK DATA
B147: DUCT_FD_DATA
B148: Dh | C148: Fd
B149: 60 | C149: 0.67
B150: 70 | C150: 0.52
B151: 80 | C151: 0.38
B152: 90 | C152: 0.32
B153: 100 | C153: 0.29
B154: 110 | C154: 0.26
B155: 120 | C155: 0.23
B156: 130 | C156: 0.2
B157: 140 | C157: 0.18
B158: 150 | C158: 0.17
B159: 160 | C159: 0.16
B160: 170 | C160: 0.15
B161: 180 | C161: 0.14
B162: 190 | C162: 0.13
B163: 200 | C163: 0.12
B164: 210 | C164: 0.11
B165: 220 | C165: 0.1
B166: 230 | C166: 0.099
B167: 240 | C167: 0.095
B168: 250 | C168: 0.091
B169: 260 | C169: 0.088
B170: 270 | C170: 0.084
B171: 280 | C171: 0.08
B172: 290 | C172: 0.076
B173: 300 | C173: 0.073
B174: 310 | C174: 0.071
B175: 320 | C175: 0.069
B176: 330 | C176: 0.067
B177: 340 | C177: 0.065
B178: 350 | C178: 0.062
B179: 360 | C179: 0.06
B180: 370 | C180: 0.058
B181: 380 | C181: 0.056
B182: 390 | C182: 0.055
B183: 400 | C183: 0.055
B184: 410 | C184: 0.052
B185: 420 | C185: 0.049
B186: 430 | C186: 0.048
B187: 440 | C187: 0.046
B188: 450 | C188: 0.045
B189: 460 | C189: 0.044
B190: 470 | C190: 0.043
B191: 480 | C191: 0.042
B192: 490 | C192: 0.04
B193: 500 | C193: 0.039
B194: 510 | C194: 0.039
B195: 520 | C195: 0.038
B196: 530 | C196: 0.037
B197: 540 | C197: 0.036
B198: 550 | C198: 0.035
B199: 560 | C199: 0.033
B200: 570 | C200: 0.033
B201: 580 | C201: 0.032
B202: 590 | C202: 0.031
B203: 600 | C203: 0.03
B204: 610 | C204: 0.03
B205: 620 | C205: 0.03
B206: 630 | C206: 0.029
B207: 640 | C207: 0.029
B208: 650 | C208: 0.028
B209: 660 | C209: 0.028
B210: 670 | C210: 0.027
B211: 680 | C211: 0.027
B212: 690 | C212: 0.026
B213: 700 | C213: 0.026
B214: 710 | C214: 0.026
B215: 720 | C215: 0.025
B216: 730 | C216: 0.025
B217: 740 | C217: 0.024
B218: 750 | C218: 0.024
B219: 760 | C219: 0.024
B220: 770 | C220: 0.023
B221: 780 | C221: 0.023
B222: 790 | C222: 0.023
B223: 800 | C223: 0.023
B224: 810 | C224: 0.022
B225: 820 | C225: 0.022
B226: 830 | C226: 0.021
B227: 840 | C227: 0.021
B228: 850 | C228: 0.02
B229: 860 | C229: 0.02
B230: 870 | C230: 0.02
B231: 880 | C231: 0.02
B232: 890 | C232: 0.019
B233: 900 | C233: 0.019
B234: 910 | C234: 0.019
B235: 920 | C235: 0.019
B236: 930 | C236: 0.018
B237: 940 | C237: 0.018
B238: 950 | C238: 0.018
... 114 more rows

Sheet CONVERSION _DATA (hidden)
A1: PRESSURE | AJ1: TEMPERATURE | AZ1: x | BA1: +
A2: Cfm | B2: 1 | C2: Cfm | E2: Cfm | F2: =1/B3 -> 0.4720098178 | G2: Litre/sec | I2: Cfm | J2: =1/B4 -> 28.32058907 | K2: Litre/min | M2: Cfm | N2: =1/B5 -> 1699.235344 | O2: Litre/h | Q2: Cfm | R2: =1/B6 -> 0.02832058907 | S2: m3/min | U2: Cfm | V2: =1/B7 -> 1.699235344 | W2: m3/h | Y2: Cfm | Z2: =1/B8 -> 0.0004720098178 | AA2: m3/s | AC2: Cfm | AD2: 1.8248 | AE2: Nm3/h | AG2: =C2 -> Cfm | AH2: =B10 -> 0.5885 | AJ2: °C | AK2: 1 | AL2: °C | AM2: 0 | AO2: °C | AP2: =5/9 -> 0.5555555556 | AQ2: °F | AR2: =-160/9 -> -17.77777778 | AT2: °C | AU2: 1 | AV2: °K | AW2: -273 | AY2: °C | AZ2: =+AK5 -> 1 | BA2: =+AM5 -> 32
A3: Litre/sec | B3: 2.1186 | C3: Cfm | E3: Litre/sec | F3: 1 | G3: Litre/sec | I3: Litre/sec | J3: 60 | K3: Litre/min | M3: Litre/sec | N3: 3600 | O3: Litre/h | Q3: Litre/sec | R3: 0.06 | S3: m3/min | U3: Litre/sec | V3: 3.6 | W3: m3/h | Y3: Litre/sec | Z3: 0.001 | AA3: m3/s | AC3: Litre/sec | AD3: =AD7*V3 -> 3.354266212 | AE3: Nm3/h | AG3: =G2 -> Litre/sec | AH3: =F10 -> 0.2777777778 | AJ3: °F | AK3: =9/5 -> 1.8 | AL3: °C | AM3: 32 | AO3: °F | AP3: 1 | AQ3: °F | AR3: 0 | AT3: °F | AU3: =9/5 -> 1.8 | AV3: °K | AW3: =-2297/5 -> -459.4 | AY3: °F | AZ3: =+AP5 -> 0.5555555556 | BA3: =+AR5 -> 0
A4: Litre/min | B4: =B3*F4 -> 0.03531 | C4: Cfm | E4: Litre/min | F4: =1/60 -> 0.01666666667 | G4: Litre/sec | I4: Litre/min | J4: 1 | K4: Litre/min | M4: Litre/min | N4: 60 | O4: Litre/h | Q4: Litre/min | R4: 0.001 | S4: m3/min | U4: Litre/min | V4: 0.06 | W4: m3/h | Y4: Litre/min | Z4: =1/60000 -> 1.666666667e-05 | AA4: m3/s | AC4: Litre/min | AD4: =AD7*V4 -> 0.05590443686 | AE4: Nm3/h | AG4: =K2 -> Litre/min | AH4: =J10 -> 16.66666667 | AJ4: °K | AK4: 1 | AL4: °C | AM4: 273 | AO4: °K | AP4: =5/9 -> 0.5555555556 | AQ4: °F | AR4: =2297/9 -> 255.2222222 | AT4: °K | AU4: 1 | AV4: °K | AW4: 0 | AY4: °K | AZ4: =+AU5 -> 1 | BA4: =+AW5 -> -459.4
A5: Litre/h | B5: =F5*B3 -> 0.0005885 | C5: Cfm | E5: Litre/h | F5: =1/3600 -> 0.0002777777778 | G5: Litre/sec | I5: Litre/h | J5: =1/60 -> 0.01666666667 | K5: Litre/min | M5: Litre/h | N5: 1 | O5: Litre/h | Q5: Litre/h | R5: =1/60000 -> 1.666666667e-05 | S5: m3/min | U5: Litre/h | V5: 0.001 | W5: m3/h | Y5: Litre/h | Z5: =1/3600000 -> 2.777777778e-07 | AA5: m3/s | AC5: Litre/h | AD5: =AD7*V5 -> 0.0009317406143 | AE5: Nm3/h | AG5: =O2 -> Litre/h | AH5: =N10 -> 1000 | AK5: =VLOOKUP(CONVERSION!$I$7,AJ2:AM4,2,FALSE) -> 1 | AM5: =VLOOKUP(CONVERSION!$L$7,AJ2:AM4,4,FALSE) -> 32 | AP5: =VLOOKUP(CONVERSION!$I$7,AO2:AR4,2,FALSE) -> 0.5555555556 | AR5: =VLOOKUP(CONVERSION!$L$7,AO2:AR4,4,FALSE) -> 0 | AU5: =VLOOKUP(CONVERSION!$I$7,AT2:AW4,2,FALSE) -> 1 | AW5: =VLOOKUP(CONVERSION!$L$7,AT2:AW4,4,FALSE) -> -459.4 | AZ5: =VLOOKUP(CONVERSION!$I$7,AY2:BA4,2,FALSE) -> 1 | BA5: =VLOOKUP(CONVERSION!$I$7,AY2:BA4,3,FALSE) -> 32
A6: m3/min | B6: =+F6*B3 -> 35.31 | C6: Cfm | E6: m3/min | F6: =1000/60 -> 16.66666667 | G6: Litre/sec | I6: m3/min | J6: 1000 | K6: Litre/min | M6: m3/min | N6: 60000 | O6: Litre/h | Q6: m3/min | R6: 1 | S6: m3/min | U6: m3/min | V6: 60 | W6: m3/h | Y6: m3/min | Z6: =1/60 -> 0.01666666667 | AA6: m3/s | AC6: m3/min | AD6: =+AD7*V6 -> 55.90443686 | AE6: Nm3/h | AG6: =S2 -> m3/min | AH6: =R10 -> 0.01666666667
A7: m3/h | B7: =+F7*B3 -> 0.5885 | C7: Cfm | E7: m3/h | F7: =1000/3600 -> 0.2777777778 | G7: Litre/sec | I7: m3/h | J7: =1000/60 -> 16.66666667 | K7: Litre/min | M7: m3/h | N7: 1000 | O7: Litre/h | Q7: m3/h | R7: =1/60 -> 0.01666666667 | S7: m3/min | U7: m3/h | V7: 1 | W7: m3/h | Y7: m3/h | Z7: =1/3600 -> 0.0002777777778 | AA7: m3/s | AC7: m3/h | AD7: =273/293 -> 0.9317406143 | AE7: Nm3/h | AG7: =W2 -> m3/h | AH7: =V10 -> 1
A8: m3/s | B8: =+F8*B3 -> 2118.6 | C8: Cfm | E8: m3/s | F8: 1000 | G8: Litre/sec | I8: m3/s | J8: 60000 | K8: Litre/min | M8: m3/s | N8: 3600000 | O8: Litre/h | Q8: m3/s | R8: 60 | S8: m3/min | U8: m3/s | V8: 3600 | W8: m3/h | Y8: m3/s | Z8: 1 | AA8: m3/s | AC8: m3/s | AD8: =AD7*V8 -> 3354.266212 | AE8: Nm3/h | AG8: =AA2 -> m3/s | AH8: =Z10 -> 0.0002777777778 | AJ8: 500 | AK8: 0.98
A9: Nm3/h | B9: 0.548 | C9: Cfm | E9: Nm3/h | F9: =1/AD3 -> 0.2981277981 | G9: Litre/sec | I9: Nm3/h | J9: =1/AD4 -> 17.88766789 | K9: Litre/min | M9: Nm3/h | N9: =1/AD5 -> 1073.260073 | O9: Litre/h | Q9: Nm3/h | R9: =1/AD6 -> 0.01788766789 | S9: m3/min | U9: Nm3/h | V9: =1/AD7 -> 1.073260073 | W9: m3/h | Y9: Nm3/h | Z9: =1/AD8 -> 0.0002981277981 | AA9: m3/s | AC9: Nm3/h | AD9: 1 | AE9: Nm3/h | AG9: =AE2 -> Nm3/h | AH9: =AD10 -> 0.9317406143 | AJ9: 1000 | AK9: 0.96
B10: =VLOOKUP(CONVERSION!$C$7,'CONVERSION _DATA'!A2:B9,2,FALSE) -> 0.5885 | F10: =VLOOKUP(CONVERSION!$C$7,'CONVERSION _DATA'!E2:F9,2,FALSE) -> 0.2777777778 | J10: =VLOOKUP(CONVERSION!$C$7,'CONVERSION _DATA'!I2:J9,2,FALSE) -> 16.66666667 | N10: =VLOOKUP(CONVERSION!$C$7,'CONVERSION _DATA'!M2:N9,2,FALSE) -> 1000 | R10: =VLOOKUP(CONVERSION!$C$7,'CONVERSION _DATA'!Q2:R9,2,FALSE) -> 0.01666666667 | V10: =VLOOKUP(CONVERSION!$C$7,'CONVERSION _DATA'!U2:V9,2,FALSE) -> 1 | Z10: =VLOOKUP(CONVERSION!$C$7,'CONVERSION _DATA'!Y2:Z9,2,FALSE) -> 0.0002777777778 | AD10: =VLOOKUP(CONVERSION!$C$7,'CONVERSION _DATA'!AC2:AD9,2,FALSE) -> 0.9317406143 | AH10: =VLOOKUP(CONVERSION!$F$7,'CONVERSION _DATA'!AG2:AH9,2,FALSE) -> 0.2777777778 | AJ10: 1500 | AK10: 0.935
AJ11: 2000 | AK11: 0.91
A12: VOLUME | AJ12: 2500 | AK12: 0.89
A13: cm3 | B13: 1 | C13: cm3 | E13: cm3 | F13: 1e-06 | G13: m3 | I13: cm3 | J13: 0.001 | K13: Litre | M13: cm3 | N13: 0.061024 | O13: Inch3 | Q13: cm3 | R13: 3.53e-05 | S13: Ft3 | U13: cm3 | V13: - | W13: Yd3 | Y13: cm3 | Z13: 0.00022 | AA13: Gallon | AC13: cm3 | AD13: 0.00176 | AE13: Pint | AG13: cm3 | AH13: =B21 -> 1000000 | AJ13: 3000 | AK13: 0.865
A14: m3 | B14: 1000000 | C14: cm3 | E14: m3 | F14: 1 | G14: m3 | I14: m3 | J14: 1000 | K14: Litre | M14: m3 | N14: 61023.7 | O14: Inch3 | Q14: m3 | R14: 35.3147 | S14: Ft3 | U14: m3 | V14: 1.30795 | W14: Yd3 | Y14: m3 | Z14: 219.969 | AA14: Gallon | AC14: m3 | AD14: 1759.75 | AE14: Pint | AG14: m3 | AH14: =F21 -> 1 | AJ14: 3500 | AK14: 0.84
A15: Litre | B15: 1000 | C15: cm3 | E15: Litre | F15: 0.001 | G15: m3 | I15: Litre | J15: 1 | K15: Litre | M15: Litre | N15: 61.0237 | O15: Inch3 | Q15: Litre | R15: 0.035315 | S15: Ft3 | U15: Litre | V15: 0.001308 | W15: Yd3 | Y15: Litre | Z15: 0.219969 | AA15: Gallon | AC15: Litre | AD15: 1.759 | AE15: Pint | AG15: Litre | AH15: =J21 -> 1000 | AJ15: 4000 | AK15: 0.815
A16: In3 | B16: 16.3871 | C16: cm3 | E16: In3 | F16: 1.64e-05 | G16: m3 | I16: In3 | J16: 0.016387 | K16: Litre | M16: In3 | N16: 1 | O16: Inch3 | Q16: In3 | R16: 0.0005787 | S16: Ft3 | U16: In3 | V16: 2.14e-05 | W16: Yd3 | Y16: In3 | Z16: 0.003605 | AA16: Gallon | AC16: In3 | AD16: 0.028837 | AE16: Pint | AG16: In3 | AH16: =N21 -> 61023.7
A17: Ft3 | B17: 28316.8 | C17: cm3 | E17: Ft3 | F17: 0.028317 | G17: m3 | I17: Ft3 | J17: 28.3168 | K17: Litre | M17: Ft3 | N17: 1728 | O17: Inch3 | Q17: Ft3 | R17: 1 | S17: Ft3 | U17: Ft3 | V17: 0.037037 | W17: Yd3 | Y17: Ft3 | Z17: 6.22883 | AA17: Gallon | AC17: Ft3 | AD17: 49.8307 | AE17: Pint | AG17: Ft3 | AH17: =R21 -> 35.3147
A18: Yd3 | B18: 764555 | C18: cm3 | E18: Yd3 | F18: 0.764555 | G18: m3 | I18: Yd3 | J18: 764.555 | K18: Litre | M18: Yd3 | N18: 46656 | O18: Inch3 | Q18: Yd3 | R18: 27 | S18: Ft3 | U18: Yd3 | V18: 1 | W18: Yd3 | Y18: Yd3 | Z18: 168.1784 | AA18: Gallon | AC18: Yd3 | AD18: 1345.429 | AE18: Pint | AG18: Yd3 | AH18: =V21 -> 1.30795
A19: Gallon | B19: 4546.09 | C19: cm3 | E19: Gallon | F19: 0.0045461 | G19: m3 | I19: Gallon | J19: 4.54609 | K19: Litre | M19: Gallon | N19: 277.42 | O19: Inch3 | Q19: Gallon | R19: 0.160544 | S19: Ft3 | U19: Gallon | V19: 0.005946 | W19: Yd3 | Y19: Gallon | Z19: 1 | AA19: Gallon | AC19: Gallon | AD19: 8 | AE19: Pint | AG19: Gallon | AH19: =Z21 -> 219.969
A20: Pint | B20: 568.261 | C20: cm3 | E20: Pint | F20: 0.0005683 | G20: m3 | I20: Pint | J20: 0.568261 | K20: Litre | M20: Pint | N20: 34.6774 | O20: Inch3 | Q20: Pint | R20: 0.020068 | S20: Ft3 | U20: Pint | V20: 0.000743 | W20: Yd3 | Y20: Pint | Z20: 0.125 | AA20: Gallon | AC20: Pint | AD20: 1 | AE20: Pint | AG20: Pint | AH20: =AD21 -> 1759.75 | AK20: =-0.00005*CONVERSION!K31+1.0057 -> 0.89005
B21: =VLOOKUP(CONVERSION!$I$19,'CONVERSION _DATA'!A13:B20,2,FALSE) -> 1000000 | F21: =VLOOKUP(CONVERSION!$I$19,'CONVERSION _DATA'!E13:F20,2,FALSE) -> 1 | J21: =VLOOKUP(CONVERSION!$I$19,'CONVERSION _DATA'!I13:J20,2,FALSE) -> 1000 | N21: =VLOOKUP(CONVERSION!$I$19,'CONVERSION _DATA'!M13:N20,2,FALSE) -> 61023.7 | R21: =VLOOKUP(CONVERSION!$I$19,'CONVERSION _DATA'!Q13:R20,2,FALSE) -> 35.3147 | V21: =VLOOKUP(CONVERSION!$I$19,'CONVERSION _DATA'!U13:V20,2,FALSE) -> 1.30795 | Z21: =VLOOKUP(CONVERSION!$I$19,'CONVERSION _DATA'!Y13:Z20,2,FALSE) -> 219.969 | AD21: =VLOOKUP(CONVERSION!$I$19,'CONVERSION _DATA'!AC13:AD20,2,FALSE) -> 1759.75 | AH21: =VLOOKUP(CONVERSION!$L$19,'CONVERSION _DATA'!AG13:AH20,2,FALSE) -> 35.3147
A23: PRESSURE | U23: OIL CONTENT
A24: Bar | B24: 1 | C24: Bar | E24: Bar | F24: 14.504 | G24: PSI | I24: Bar | J24: 750.062 | K24: mmHg | M24: Bar | N24: 0.9869 | O24: Atmos. | Q24: Bar | R24: =+B28 -> 0.06895 | U24: ppm | V24: 1 | W24: ppm | Y24: ppm | Z24: 1.2 | AA24: mg/m3 | AC24: ppm | AD24: =V26 -> 0.8333333333
A25: PSI | B25: 0.06895 | C25: Bar | E25: PSI | F25: 1 | G25: PSI | I25: PSI | J25: 51.715 | K25: mmHg | M25: PSI | N25: 0.068046 | O25: Atmos. | Q25: PSI | R25: =+F28 -> 1 | U25: mg/m3 | V25: =1/Z24 -> 0.8333333333 | W25: ppm | Y25: mg/m3 | Z25: 1 | AA25: mg/m3 | AC25: mg/m3 | AD25: =Z26 -> 1
A26: mmHg | B26: 0.001333 | C26: Bar | E26: mmHg | F26: 0.019337 | G26: PSI | I26: mmHg | J26: 1 | K26: mmHg | M26: mmHg | N26: 0.001316 | O26: Atmos. | Q26: mmHg | R26: =+J28 -> 51.715 | V26: =VLOOKUP(CONVERSION!$I$13,'CONVERSION _DATA'!U24:V25,2,FALSE) -> 0.8333333333 | Z26: =VLOOKUP(CONVERSION!$I$13,'CONVERSION _DATA'!Y24:Z25,2,FALSE) -> 1 | AD26: =VLOOKUP(CONVERSION!$L$13,'CONVERSION _DATA'!AC24:AD25,2,FALSE) -> 0.8333333333
A27: Atmos. | B27: 1.01325 | C27: Bar | E27: Atmos. | F27: 14.6959 | G27: PSI | I27: Atmos. | J27: 760 | K27: mmHg | M27: Atmos. | N27: 1 | O27: Atmos. | Q27: Atmos. | R27: =+N28 -> 0.068046
B28: =VLOOKUP(CONVERSION!$C$13,'CONVERSION _DATA'!A24:B27,2,FALSE) -> 0.06895 | F28: =VLOOKUP(CONVERSION!$C$13,'CONVERSION _DATA'!E24:F27,2,FALSE) -> 1 | J28: =VLOOKUP(CONVERSION!$C$13,'CONVERSION _DATA'!I24:J27,2,FALSE) -> 51.715 | N28: =VLOOKUP(CONVERSION!$C$13,'CONVERSION _DATA'!M24:N27,2,FALSE) -> 0.068046 | R28: =VLOOKUP(CONVERSION!$F$13,'CONVERSION _DATA'!Q24:R27,2,FALSE) -> 0.06895
A30: LENGTH
A31: mm | B31: 1 | C31: mm | E31: mm | F31: 0.1 | G31: cm | I31: mm | J31: 0.03937 | K31: Inch | M31: mm | N31: 0.003281 | O31: Foot | Q31: mm | R31: 0.001094 | S31: Yard | U31: mm | V31: 0.001 | W31: Metre | Y31: mm | Z31: =+B37 -> 1000
A32: cm | B32: 10 | C32: mm | E32: cm | F32: 1 | G32: cm | I32: cm | J32: 0.393701 | K32: Inch | M32: cm | N32: 0.032808 | O32: Foot | Q32: cm | R32: 0.010936 | S32: Yard | U32: cm | V32: 0.01 | W32: Metre | Y32: cm | Z32: =+F37 -> 100
A33: Inch | B33: 25.4 | C33: mm | E33: Inch | F33: 2.54 | G33: cm | I33: Inch | J33: 1 | K33: Inch | M33: Inch | N33: 0.08333 | O33: Foot | Q33: Inch | R33: 0.027778 | S33: Yard | U33: Inch | V33: 0.0254 | W33: Metre | Y33: Inch | Z33: =+J37 -> 39.3701
A34: Foot | B34: 304.8 | C34: mm | E34: Foot | F34: 30.48 | G34: cm | I34: Foot | J34: 12 | K34: Inch | M34: Foot | N34: 1 | O34: Foot | Q34: Foot | R34: 0.333333 | S34: Yard | U34: Foot | V34: 0.3048 | W34: Metre | Y34: Foot | Z34: =N37 -> 3.28084
A35: Yard | B35: 914.4 | C35: mm | E35: Yard | F35: 91.44 | G35: cm | I35: Yard | J35: 36 | K35: Inch | M35: Yard | N35: 3 | O35: Foot | Q35: Yard | R35: 1 | S35: Yard | U35: Yard | V35: 0.9144 | W35: Metre | Y35: Yard | Z35: =+R37 -> 1.09361
A36: Metre | B36: 1000 | C36: mm | E36: Metre | F36: 100 | G36: cm | I36: Metre | J36: 39.3701 | K36: Inch | M36: Metre | N36: 3.28084 | O36: Foot | Q36: Metre | R36: 1.09361 | S36: Yard | U36: Metre | V36: 1 | W36: Metre | Y36: Metre | Z36: =+V37 -> 1
B37: =VLOOKUP(CONVERSION!$C$31,'CONVERSION _DATA'!A31:B36,2,FALSE) -> 1000 | F37: =VLOOKUP(CONVERSION!$C$31,'CONVERSION _DATA'!E31:F36,2,FALSE) -> 100 | J37: =VLOOKUP(CONVERSION!$C$31,'CONVERSION _DATA'!I31:J36,2,FALSE) -> 39.3701 | N37: =VLOOKUP(CONVERSION!$C$31,'CONVERSION _DATA'!M31:N36,2,FALSE) -> 3.28084 | R37: =VLOOKUP(CONVERSION!$C$31,'CONVERSION _DATA'!Q31:R36,2,FALSE) -> 1.09361 | V37: =VLOOKUP(CONVERSION!$C$31,'CONVERSION _DATA'!U31:V36,2,FALSE) -> 1 | Z37: =VLOOKUP(CONVERSION!$F$31,'CONVERSION _DATA'!Y31:Z36,2,FALSE) -> 1.09361
A39: ENERGY
A40: kW/h | B40: 1 | C40: kW/h | E40: kW/h | F40: 1.3412 | G40: HP/h | I40: kW/h | J40: =1/B42 -> 3600.774887 | K40: Joule | M40: kW/h | N40: 860.563 | O40: Calorie | Q40: kW/h | R40: 3412.8 | S40: Btu | U40: kW/h | V40: =B45 -> 1
A41: HP/h | B41: 0.7456 | C41: kW/h | E41: HP/h | F41: 1 | G41: HP/h | I41: HP/h | J41: =1/F42 -> 2685.558677 | K41: Joule | M41: HP/h | N41: 641.617 | O41: Calorie | Q41: HP/h | R41: 2544.5 | S41: Btu | U41: HP/h | V41: =F45 -> 1.3412
A42: Joule | B42: =N42*B43 -> 0.000277718 | C42: kW/h | E42: Joule | F42: =+N42*F43 -> 0.000372362 | G42: HP/h | I42: Joule | J42: 1 | K42: Joule | M42: Joule | N42: 0.239 | O42: Calorie | Q42: Joule | R42: 0.000948 | S42: Btu | U42: Joule | V42: =J45 -> 3600.774887
A43: Calorie | B43: 0.001162 | C43: kW/h | E43: Calorie | F43: 0.001558 | G43: HP/h | I43: Calorie | J43: 4.1833 | K43: Joule | M43: Calorie | N43: 1 | O43: Calorie | Q43: Calorie | R43: 0.003966 | S43: Btu | U43: Calorie | V43: =N45 -> 860.563
A44: Btu | B44: 0.000293 | C44: kW/h | E44: Btu | F44: 0.000393 | G44: HP/h | I44: Btu | J44: 1054.9 | K44: Joule | M44: Btu | N44: 252.16 | O44: Calorie | Q44: Btu | R44: 1 | S44: Btu | U44: Btu | V44: =R45 -> 3412.8
B45: =VLOOKUP(CONVERSION!$C$19,'CONVERSION _DATA'!A40:B44,2,FALSE) -> 1 | F45: =VLOOKUP(CONVERSION!$C$19,'CONVERSION _DATA'!E40:F44,2,FALSE) -> 1.3412 | J45: =VLOOKUP(CONVERSION!$C$19,'CONVERSION _DATA'!I40:J44,2,FALSE) -> 3600.774887 | N45: =VLOOKUP(CONVERSION!$C$19,'CONVERSION _DATA'!M40:N44,2,FALSE) -> 860.563 | R45: =VLOOKUP(CONVERSION!$C$19,'CONVERSION _DATA'!Q40:R44,2,FALSE) -> 3412.8 | V45: =VLOOKUP(CONVERSION!$F$19,'CONVERSION _DATA'!U40:V44,2,FALSE) -> 3600.774887
A47: POWER
A48: HP | B48: 1 | C48: HP | E48: HP | F48: 745.7 | G48: Watt | I48: HP | J48: 0.7475 | K48: kW | M48: HP | N48: 42.41 | O48: Btu/min | Q48: HP | R48: =1/B52 -> 745.6066946 | S48: J/sec | U48: HP | V48: 178.2 | W48: Cal/sec | Y48: HP | Z48: =+B54 -> 1
A49: Watt | B49: =1/F48 -> 0.001341021859 | C49: HP | E49: Watt | F49: 1 | G49: Watt | I49: Watt | J49: 0.001 | K49: kW | M49: Watt | N49: 0.0569 | O49: Btu/min | Q49: Watt | R49: =1/F52 -> 1 | S49: J/sec | U49: Watt | V49: 0.239 | W49: Cal/sec | Y49: Watt | Z49: =+F54 -> 745.7
A50: kW | B50: 1.341 | C50: HP | E50: kW | F50: 1000 | G50: Watt | I50: kW | J50: 1 | K50: kW | M50: kW | N50: 56.88 | O50: Btu/min | Q50: kW | R50: =1/J52 -> 1000 | S50: J/sec | U50: kW | V50: 239 | W50: Cal/sec | Y50: kW | Z50: =+J54 -> 0.7475
A51: Btu/min | B51: =1/N48 -> 0.02357934449 | C51: HP | E51: Btu/min | F51: =1/N49 -> 17.57469244 | G51: Watt | I51: Btu/min | J51: =1/N50 -> 0.01758087201 | K51: kW | M51: Btu/min | N51: 1 | O51: Btu/min | Q51: Btu/min | R51: =1/N52 -> 17.58577406 | S51: J/sec | U51: Btu/min | V51: 4.203 | W51: Cal/sec | Y51: Btu/min | Z51: =+N54 -> 42.41
A52: J/sec | B52: =+V52*B53 -> 0.001341189675 | C52: HP | E52: J/sec | F52: =+V52*F53 -> 1 | G52: Watt | I52: J/sec | J52: =+V52*J53 -> 0.001 | K52: kW | M52: J/sec | N52: =+V52*N53 -> 0.05686414466 | O52: Btu/min | Q52: J/sec | R52: 1 | S52: J/sec | U52: J/sec | V52: 0.239 | W52: Cal/sec | Y52: J/sec | Z52: =+R54 -> 745.6066946
A53: Cal/sec | B53: =1/V48 -> 0.005611672278 | C53: HP | E53: Cal/sec | F53: =1/V49 -> 4.184100418 | G53: Watt | I53: Cal/sec | J53: =1/V50 -> 0.004184100418 | K53: kW | M53: Cal/sec | N53: =1/V51 -> 0.2379252915 | O53: Btu/min | Q53: Cal/sec | R53: =1/V52 -> 4.184100418 | S53: J/sec | U53: Cal/sec | V53: 1 | W53: Cal/sec | Y53: Cal/sec | Z53: =+V54 -> 178.2
B54: =VLOOKUP(CONVERSION!$F$25,'CONVERSION _DATA'!A48:B53,2,FALSE) -> 1 | F54: =VLOOKUP(CONVERSION!$F$25,'CONVERSION _DATA'!E48:F53,2,FALSE) -> 745.7 | J54: =VLOOKUP(CONVERSION!$F$25,'CONVERSION _DATA'!I48:J53,2,FALSE) -> 0.7475 | N54: =VLOOKUP(CONVERSION!$F$25,'CONVERSION _DATA'!M48:N53,2,FALSE) -> 42.41 | R54: =VLOOKUP(CONVERSION!$F$25,'CONVERSION _DATA'!Q48:R53,2,FALSE) -> 745.6066946 | V54: =VLOOKUP(CONVERSION!$F$25,'CONVERSION _DATA'!U48:V53,2,FALSE) -> 178.2 | Z54: =VLOOKUP(CONVERSION!$C$25,'CONVERSION _DATA'!Y48:Z53,2,FALSE) -> 745.7
A55: AREA | B55: Source = http://www.processassociates.com/process/convert/cf_are.htm
A56: Metre^2 | B56: 1 | C56: Metre^2 | E56: Metre^2 | F56: 10.76391042 | G56: Foot^2 | I56: Metre^2 | J56: 1550.0031 | K56: Inch^2
A57: cm^2 | B57: 0.0001 | C57: Metre^2 | E57: cm^2 | F57: 0.00107639104 | G57: Foot^2 | I57: cm^2 | J57: 0.15500031 | K57: Inch^2
A58: mm^2 | B58: 1e-06 | C58: Metre^2 | E58: mm^2 | F58: 1.07639104e-05 | G58: Foot^2 | I58: mm^2 | J58: 0.0015500031 | K58: Inch^2
A59: Yard^2 | B59: 0.83612736 | C59: Metre^2 | E59: Yard^2 | F59: 9 | G59: Foot^2 | I59: Yard^2 | J59: 1296 | K59: Inch^2
A60: Foot^2 | B60: 0.09290304 | C60: Metre^2 | E60: Foot^2 | F60: 1 | G60: Foot^2 | I60: Foot^2 | J60: 144 | K60: Inch^2
A61: Inch^2 | B61: 0.00064516 | C61: Metre^2 | E61: Inch^2 | F61: 0.00694444444 | G61: Foot^2 | I61: Inch^2 | J61: 1 | K61: Inch^2
